[Event "FIDE Grand Swiss 2023"]
[Site "Villa Marina, Douglas, Isle of Man, Isle Of Man"]
[Date "2023.11.05"]
[Round "11.37"]
[White "Mendonca, Leon Luke"]
[Black "Xiong, Jeffery"]
[Result "1-0"]
[TimeControl "40/90 + 30 + 30s/move"]
[WhiteFideId "35028561"]
[BlackFideId "2047640"]
[WhiteElo "2622"]
[BlackElo "2693"]

1. e4 {[%clk 01:40:23]} {[%emt 00:00:35]} c6 {[%clk 01:40:56]} {[%emt
00:00:05]} 2. Nf3 {[%clk 01:38:19]} {[%emt 00:02:34]} d5 {[%clk 01:41:21]}
{[%emt 00:00:04]} 3. Nc3 {[%clk 01:38:42]} {[%emt 00:00:08]} Bg4 {[%clk
01:41:40]} {[%emt 00:00:10]} 4. h3 {[%clk 01:39:03]} {[%emt 00:00:10]} Bxf3
{[%clk 01:42:06]} {[%emt 00:00:04]} 5. Qxf3 {[%clk 01:39:29]} {[%emt 00:00:05]}
e6 {[%clk 01:42:26]} {[%emt 00:00:10]} 6. Be2 {[%clk 01:38:47]} {[%emt
00:01:11]} Bc5 {[%clk 01:42:46]} {[%emt 00:00:10]} 7. O-O {[%clk 01:37:21]}
{[%emt 00:01:57]} Ne7 {[%clk 01:42:45]} {[%emt 00:00:30]} 8. Na4 {[%clk
01:36:22]} {[%emt 00:01:29]} Bd6 {[%clk 01:43:06]} {[%emt 00:00:09]} 9. d4
{[%clk 01:35:40]} {[%emt 00:01:13]} dxe4 {[%clk 01:43:28]} {[%emt 00:00:08]} 10.
Qxe4 {[%clk 01:36:00]} {[%emt 00:00:09]} Nd7 {[%clk 01:43:54]} {[%emt
00:00:04]} 11. Rd1 {[%clk 01:29:11]} {[%emt 00:07:19]} Nf6 {[%clk 01:43:35]}
{[%emt 00:00:48]} 12. Qf3 {[%clk 01:28:24]} {[%emt 00:01:18]} Qa5 {[%clk
01:43:54]} {[%emt 00:00:12]} 13. Nc3 {[%clk 01:24:43]} {[%emt 00:04:11]} Qf5
{[%clk 01:20:32]} {[%emt 00:23:49]} 14. Qxf5 {[%clk 01:15:22]} {[%emt
00:09:53]} Nxf5 {[%clk 01:19:46]} {[%emt 00:01:15]} 15. Rd3 {[%clk 00:53:23]}
{[%emt 00:22:30]} h6 {[%clk 01:15:57]} {[%emt 00:04:19]} 16. Bd2 {[%clk
00:51:58]} {[%emt 00:01:55]} O-O-O {[%clk 01:14:11]} {[%emt 00:02:16]} 17. Rd1
{[%clk 00:52:16]} {[%emt 00:00:12]} Rd7 {[%clk 01:07:15]} {[%emt 00:07:26]} 18.
Bc1 {[%clk 00:39:53]} {[%emt 00:12:53]} Rhd8 {[%clk 01:05:30]} {[%emt
00:02:15]} 19. Nb1 {[%clk 00:39:37]} {[%emt 00:00:47]} Nd5 {[%clk 00:55:34]}
{[%emt 00:10:25]} 20. c3 {[%clk 00:37:49]} {[%emt 00:02:18]} Bf4 {[%clk
00:52:20]} {[%emt 00:03:44]} 21. Nd2 {[%clk 00:23:50]} {[%emt 00:14:30]} c5
{[%clk 00:50:50]} {[%emt 00:02:00]} 22. dxc5 {[%clk 00:19:27]} {[%emt
00:04:53]} Nxc3 {[%clk 00:47:58]} {[%emt 00:03:21]} 23. Rxc3 {[%clk 00:19:48]}
{[%emt 00:00:09]} Bxd2 {[%clk 00:48:23]} {[%emt 00:00:06]} 24. c6 {[%clk
00:20:05]} {[%emt 00:00:13]} bxc6 {[%clk 00:46:47]} {[%emt 00:02:06]} 25. Rxc6+
{[%clk 00:20:30]} {[%emt 00:00:05]} Kb8 {[%clk 00:42:48]} {[%emt 00:04:28]} 26.
Rc5 {[%clk 00:15:00]} {[%emt 00:06:01]} Bg5 {[%clk 00:33:59]} {[%emt 00:09:18]}
27. Rxd7 {[%clk 00:11:31]} {[%emt 00:04:00]} Rxd7 {[%clk 00:34:27]} {[%emt
00:00:01]} 28. Bxg5 {[%clk 00:11:23]} {[%emt 00:00:38]} hxg5 {[%clk 00:34:54]}
{[%emt 00:00:02]} 29. Ba6 {[%clk 00:10:55]} {[%emt 00:00:59]} Rc7 {[%clk
00:33:33]} {[%emt 00:01:51]} 30. Rb5+ {[%clk 00:10:30]} {[%emt 00:00:56]} Ka8
{[%clk 00:34:01]} {[%emt 00:00:02]} 31. g3 {[%clk 00:10:47]} {[%emt 00:00:13]}
Nd4 {[%clk 00:30:27]} {[%emt 00:04:04]} 32. Rb4 {[%clk 00:09:38]} {[%emt
00:01:39]} Rc1+ {[%clk 00:27:44]} {[%emt 00:03:12]} 33. Kg2 {[%clk 00:09:23]}
{[%emt 00:00:46]} Nc2 {[%clk 00:28:11]} {[%emt 00:00:02]} 34. Rb3 {[%clk
00:08:08]} {[%emt 00:01:46]} Nd4 {[%clk 00:28:15]} {[%emt 00:00:25]} 35. Rb4
{[%clk 00:08:31]} {[%emt 00:00:07]} Nc2 {[%clk 00:28:33]} {[%emt 00:00:12]} 36.
Rb3 {[%clk 00:02:41]} {[%emt 00:06:21]} Nd4 {[%clk 00:28:43]} {[%emt 00:00:19]}
37. Rd3 {[%clk 00:00:33]} {[%emt 00:02:38]} e5 {[%clk 00:25:44]} {[%emt
00:03:29]} 38. Rc3 {[%clk 00:00:42]} {[%emt 00:00:22]} Rxc3 {[%clk 00:21:54]}
{[%emt 00:04:20]} 39. bxc3 {[%clk 00:01:11]} Nf5 {[%clk 00:21:57]} {[%emt
00:00:26]} 40. Kf3 {[%clk 00:00:41]} {[%emt 00:01:00]} f6 {[%clk 00:17:56]}
{[%emt 00:04:31]} 41. Ke4 {[%clk 00:45:55]} {[%emt 00:05:16]} Ne7 {[%clk
01:06:36]} {[%emt 00:01:50]} 42. Kd3 {[%clk 00:43:43]} {[%emt 00:02:42]} Kb8
{[%clk 01:03:05]} {[%emt 00:04:01]} 43. Kc4 {[%clk 00:44:06]} {[%emt 00:00:07]}
Kc7 {[%clk 01:03:29]} {[%emt 00:00:06]} 44. Kc5 {[%clk 00:44:32]} {[%emt
00:00:04]} Kd7 {[%clk 00:55:46]} {[%emt 00:08:13]} 45. Bb5+ {[%clk 00:44:12]}
{[%emt 00:00:51]} Ke6 {[%clk 00:21:20]} {[%emt 00:34:55]} 46. Bc4+ {[%clk
00:44:13]} {[%emt 00:00:29]} Kd7 {[%clk 00:11:55]} {[%emt 00:09:55]} 47. Be2
{[%clk 00:38:04]} {[%emt 00:06:39]} f5 {[%clk 00:10:34]} {[%emt 00:01:50]} 48.
Bc4 {[%clk 00:35:49]} {[%emt 00:02:46]} e4 {[%clk 00:09:52]} {[%emt 00:01:12]}
49. g4 {[%clk 00:32:41]} {[%emt 00:03:38]} g6 {[%clk 00:05:28]} {[%emt
00:04:54]} 50. Bf7 {[%clk 00:28:57]} {[%emt 00:04:14]} Kc7 {[%clk 00:05:39]}
{[%emt 00:00:19]} 51. Bd5 {[%clk 00:17:41]} {[%emt 00:11:46]} Kd7 {[%clk
00:01:18]} {[%emt 00:04:51]} 52. Kd4 {[%clk 00:17:38]} {[%emt 00:00:34]} 1-0

[Event "FIDE Grand Swiss 2023"]
[Site "Villa Marina, Douglas, Isle of Man, Isle Of Man"]
[Date "2023.11.05"]
[Round "11.38"]
[White "Grandelius, Nils"]
[Black "Vokhidov, Shamsiddin"]
[Result "1/2-1/2"]
[TimeControl "40/90 + 30 + 30s/move"]
[WhiteFideId "1710400"]
[BlackFideId "14204223"]
[WhiteElo "2689"]
[BlackElo "2578"]

1. e4 {[%clk 01:40:40]} {[%emt 00:00:19]} c5 {[%clk 01:40:55]} {[%emt
00:00:05]} 2. Nf3 {[%clk 01:40:57]} {[%emt 00:00:13]} e6 {[%clk 01:41:21]}
{[%emt 00:00:04]} 3. d3 {[%emt 00:02:13]} d5 {[%clk 01:41:25]} 4. Qe2 {[%clk
01:39:57]} {[%emt 00:00:13]} Nf6 {[%clk 01:40:23]} {[%emt 00:01:32]} 5. g3
{[%clk 01:39:48]} {[%emt 00:00:39]} Be7 {[%clk 01:40:48]} {[%emt 00:00:05]} 6.
Bg2 {[%clk 01:40:08]} {[%emt 00:00:10]} Nc6 {[%clk 01:41:15]} {[%emt 00:00:03]}
7. a4 {[%clk 01:39:50]} {[%emt 00:00:48]} b6 {[%clk 01:36:20]} {[%emt
00:05:26]} 8. O-O {[%clk 01:38:42]} {[%emt 00:01:36]} h6 {[%clk 01:36:38]}
{[%emt 00:00:13]} 9. Re1 {[%clk 01:29:50]} {[%emt 00:09:22]} Ba6 {[%clk
01:33:40]} {[%emt 00:03:28]} 10. Nc3 {[%clk 01:06:33]} {[%emt 00:23:47]} dxe4
{[%clk 01:29:20]} {[%emt 00:04:50]} 11. Nxe4 {[%clk 01:06:55]} {[%emt
00:00:08]} O-O {[%clk 01:29:33]} {[%emt 00:00:17]} 12. a5 {[%clk 00:57:45]}
{[%emt 00:09:41]} Nxa5 {[%clk 01:14:16]} {[%emt 00:15:46]} 13. Ne5 {[%clk
00:44:09]} {[%emt 00:14:06]} Rc8 {[%clk 01:05:59]} {[%emt 00:08:47]} 14. Bd2
{[%clk 00:28:31]} {[%emt 00:16:08]} Bb5 {[%clk 00:52:09]} {[%emt 00:14:20]} 15.
Bxa5 {[%clk 00:26:26]} {[%emt 00:02:35]} bxa5 {[%clk 00:52:37]} {[%emt
00:00:02]} 16. Nc3 {[%clk 00:26:08]} {[%emt 00:00:48]} a6 {[%clk 00:41:22]}
{[%emt 00:11:45]} 17. Nxb5 {[%clk 00:25:19]} {[%emt 00:01:19]} axb5 {[%clk
00:41:49]} {[%emt 00:00:04]} 18. Nc6 {[%clk 00:25:43]} {[%emt 00:00:05]} Qd7
{[%clk 00:42:17]} {[%emt 00:00:03]} 19. Nxe7+ {[%clk 00:26:07]} {[%emt
00:00:06]} Qxe7 {[%clk 00:42:45]} {[%emt 00:00:01]} 20. Rxa5 {[%clk 00:26:32]}
{[%emt 00:00:06]} Qd7 {[%clk 00:42:50]} {[%emt 00:00:25]} 21. Rea1 {[%clk
00:17:33]} {[%emt 00:09:28]} Rfd8 {[%clk 00:41:42]} {[%emt 00:01:38]} 22. Bf3
{[%clk 00:17:17]} {[%emt 00:00:46]} b4 {[%clk 00:37:30]} {[%emt 00:04:42]} 23.
Ra7 {[%clk 00:17:07]} {[%emt 00:00:40]} Qd4 {[%clk 00:34:25]} {[%emt 00:03:35]}
24. b3 {[%clk 00:17:30]} {[%emt 00:00:07]} Rd7 {[%clk 00:32:45]} {[%emt
00:02:10]} 25. Ra8 {[%clk 00:17:33]} {[%emt 00:00:28]} Rxa8 {[%clk 00:31:44]}
{[%emt 00:01:31]} 26. Rxa8+ {[%clk 00:18:00]} {[%emt 00:00:02]} Rd8 {[%clk
00:32:06]} {[%emt 00:00:08]} 27. Ra5 {[%clk 00:16:01]} {[%emt 00:02:29]} Rc8
{[%clk 00:27:40]} {[%emt 00:04:56]} 28. Bb7 {[%clk 00:13:07]} {[%emt 00:03:23]}
Rb8 {[%clk 00:26:19]} {[%emt 00:01:52]} 29. Bf3 {[%clk 00:13:07]} {[%emt
00:00:29]} Rc8 {[%clk 00:25:50]} {[%emt 00:01:01]} 30. Bb7 {[%clk 00:13:31]}
{[%emt 00:00:05]} Rb8 {[%clk 00:26:09]} {[%emt 00:00:11]} 1/2-1/2

[Event "FIDE Grand Swiss 2023"]
[Site "Villa Marina, Douglas, Isle of Man, Isle Of Man"]
[Date "2023.11.05"]
[Round "11.39"]
[White "Nguyen, Thai Dai Van"]
[Black "Abasov, Nijat"]
[Result "1-0"]
[TimeControl "40/90 + 30 + 30s/move"]
[WhiteFideId "358878"]
[BlackFideId "13402960"]
[WhiteElo "2618"]
[BlackElo "2679"]

1. c4 {[%clk 01:40:42]} {[%emt 00:00:16]} e6 {[%clk 01:40:52]} {[%emt
00:00:08]} 2. g3 {[%clk 01:41:04]} {[%emt 00:00:09]} Nf6 {[%clk 01:41:04]}
{[%emt 00:00:18]} 3. Bg2 {[%clk 01:41:28]} {[%emt 00:00:06]} d5 {[%clk
01:41:25]} {[%emt 00:00:08]} 4. Nf3 {[%clk 01:41:54]} {[%emt 00:00:04]} dxc4
{[%clk 01:40:49]} {[%emt 00:01:07]} 5. Qa4+ {[%clk 01:41:14]} {[%emt 00:01:10]}
Bd7 {[%clk 01:40:37]} {[%emt 00:00:42]} 6. Qxc4 {[%clk 01:41:38]} {[%emt
00:00:06]} c5 {[%clk 01:41:00]} {[%emt 00:00:06]} 7. d4 {[%clk 01:41:18]}
{[%emt 00:00:51]} Nc6 {[%clk 01:36:57]} {[%emt 00:04:33]} 8. O-O {[%clk
01:41:23]} {[%emt 00:00:25]} cxd4 {[%clk 01:35:00]} {[%emt 00:02:28]} 9. Nxd4
{[%clk 01:41:47]} {[%emt 00:00:07]} Rc8 {[%clk 01:35:24]} {[%emt 00:00:04]} 10.
Nc3 {[%clk 01:42:10]} {[%emt 00:00:07]} Nxd4 {[%clk 01:34:47]} {[%emt
00:01:07]} 11. Qxd4 {[%clk 01:42:39]} {[%emt 00:00:02]} Bc5 {[%clk 01:35:11]}
{[%emt 00:00:06]} 12. Qh4 {[%clk 01:43:03]} {[%emt 00:00:05]} Bc6 {[%clk
01:35:26]} {[%emt 00:00:16]} 13. Bxc6+ {[%clk 01:40:03]} {[%emt 00:03:30]} Rxc6
{[%clk 01:35:49]} {[%emt 00:00:07]} 14. Rd1 {[%clk 01:36:46]} {[%emt 00:03:47]}
Qa5 {[%clk 01:30:18]} {[%emt 00:06:00]} 15. Bg5 {[%clk 01:34:57]} {[%emt
00:02:19]} Be7 {[%clk 01:30:40]} {[%emt 00:00:09]} 16. Ne4 {[%clk 01:35:19]}
{[%emt 00:00:07]} Qe5 {[%clk 01:31:04]} {[%emt 00:00:06]} 17. Nxf6+ {[%clk
01:35:46]} {[%emt 00:00:04]} Bxf6 {[%clk 01:31:25]} {[%emt 00:00:09]} 18. Bxf6
{[%clk 01:36:12]} {[%emt 00:00:03]} Qxf6 {[%clk 01:31:47]} {[%emt 00:00:08]} 19.
Qxf6 {[%clk 01:36:35]} {[%emt 00:00:08]} gxf6 {[%clk 01:32:10]} {[%emt
00:00:06]} 20. Rac1 {[%clk 01:36:59]} {[%emt 00:00:06]} Rxc1 {[%clk 01:32:33]}
{[%emt 00:00:08]} 21. Rxc1 {[%clk 01:37:26]} {[%emt 00:00:04]} Kd7 {[%clk
01:32:53]} {[%emt 00:00:08]} 22. Rc4 {[%clk 01:22:03]} {[%emt 00:15:54]} b6
{[%clk 01:28:17]} {[%emt 00:05:06]} 23. Kg2 {[%clk 01:19:09]} {[%emt 00:03:23]}
Rg8 {[%clk 01:25:07]} {[%emt 00:03:41]} 24. Ra4 {[%clk 01:03:59]} {[%emt
00:15:40]} a5 {[%clk 01:24:22]} {[%emt 00:01:14]} 25. Rh4 {[%clk 01:04:26]}
{[%emt 00:00:03]} Rg7 {[%clk 01:06:14]} {[%emt 00:18:38]} 26. e4 {[%clk
01:01:49]} {[%emt 00:03:07]} Ke7 {[%clk 00:47:07]} {[%emt 00:19:36]} 27. Rh5
{[%clk 00:32:49]} {[%emt 00:29:32]} Rg5 {[%clk 00:25:30]} {[%emt 00:22:06]} 28.
Rxh7 {[%clk 00:25:44]} {[%emt 00:07:36]} Re5 {[%clk 00:24:59]} {[%emt
00:01:01]} 29. Kf3 {[%clk 00:20:13]} {[%emt 00:06:01]} Kf8 {[%clk 00:25:12]}
{[%emt 00:00:17]} 30. Rh8+ {[%clk 00:19:48]} {[%emt 00:00:55]} Kg7 {[%clk
00:25:39]} {[%emt 00:00:03]} 31. Rb8 {[%clk 00:18:33]} {[%emt 00:01:45]} Rb5
{[%clk 00:26:02]} {[%emt 00:00:06]} 32. b3 {[%clk 00:19:00]} {[%emt 00:00:03]}
Rb4 {[%clk 00:25:38]} {[%emt 00:00:54]} 33. Rc8 {[%clk 00:12:49]} {[%emt
00:06:42]} b5 {[%clk 00:24:19]} {[%emt 00:01:49]} 34. Ke3 {[%clk 00:07:34]}
{[%emt 00:05:45]} f5 {[%clk 00:23:39]} {[%emt 00:01:10]} 35. exf5 {[%clk
00:07:37]} {[%emt 00:00:27]} exf5 {[%clk 00:24:04]} {[%emt 00:00:04]} 36. f3
{[%clk 00:06:49]} {[%emt 00:01:19]} a4 {[%clk 00:24:28]} {[%emt 00:00:06]} 37.
Rc3 {[%clk 00:07:14]} {[%emt 00:00:04]} axb3 {[%clk 00:24:00]} {[%emt
00:00:58]} 38. axb3 {[%clk 00:07:33]} {[%emt 00:00:12]} f4+ {[%clk 00:24:19]}
{[%emt 00:00:11]} 39. Kd2 {[%clk 00:07:43]} 1-0

[Event "FIDE Grand Swiss 2023"]
[Site "Villa Marina, Douglas, Isle of Man, Isle Of Man"]
[Date "2023.11.05"]
[Round "11.40"]
[White "Krasenkow, Michal"]
[Black "Melkumyan, Hrant"]
[Result "1-0"]
[TimeControl "40/90 + 30 + 30s/move"]
[WhiteFideId "1113100"]
[BlackFideId "13302485"]
[WhiteElo "2531"]
[BlackElo "2650"]

1. d4 {[%clk 01:40:57]} {[%emt 00:00:03]} d5 {[%clk 01:40:51]} {[%emt
00:00:09]} 2. c4 {[%clk 01:41:23]} {[%emt 00:00:04]} e6 {[%clk 01:41:13]}
{[%emt 00:00:08]} 3. Nc3 {[%clk 01:41:49]} {[%emt 00:00:04]} Be7 {[%clk
01:41:30]} {[%emt 00:00:13]} 4. Nf3 {[%clk 01:41:45]} {[%emt 00:00:35]} Nf6
{[%clk 01:41:42]} {[%emt 00:00:17]} 5. Bf4 {[%clk 01:41:38]} {[%emt 00:00:37]}
O-O {[%clk 01:41:59]} {[%emt 00:00:13]} 6. e3 {[%clk 01:42:06]} {[%emt
00:00:03]} b6 {[%clk 01:42:13]} {[%emt 00:00:15]} 7. cxd5 {[%clk 01:42:24]}
{[%emt 00:00:13]} Nxd5 {[%clk 01:42:30]} {[%emt 00:00:12]} 8. Nxd5 {[%clk
01:42:45]} {[%emt 00:00:10]} Qxd5 {[%clk 01:42:50]} {[%emt 00:00:09]} 9. Bd3
{[%clk 01:42:42]} {[%emt 00:00:34]} Ba6 {[%clk 01:42:30]} {[%emt 00:00:49]} 10.
O-O {[%clk 01:37:47]} {[%emt 00:05:25]} Qb7 {[%clk 01:38:02]} {[%emt 00:04:57]}
11. Rc1 {[%clk 01:30:21]} {[%emt 00:07:57]} c5 {[%clk 01:35:20]} {[%emt
00:03:12]} 12. dxc5 {[%clk 01:29:02]} {[%emt 00:01:49]} bxc5 {[%clk 01:29:48]}
{[%emt 00:06:02]} 13. Ng5 {[%clk 01:21:41]} {[%emt 00:07:51]} Bxg5 {[%clk
01:27:52]} {[%emt 00:02:26]} 14. Bxg5 {[%clk 01:21:53]} {[%emt 00:00:18]} Rc8
{[%clk 01:24:45]} {[%emt 00:03:36]} 15. b3 {[%clk 01:19:21]} {[%emt 00:03:03]}
Qd5 {[%clk 01:21:16]} {[%emt 00:03:58]} 16. Bxa6 {[%clk 01:18:58]} {[%emt
00:00:54]} Nxa6 {[%clk 01:21:38]} {[%emt 00:00:08]} 17. Qg4 {[%clk 01:17:28]}
{[%emt 00:02:00]} Qf5 {[%clk 01:16:49]} {[%emt 00:05:20]} 18. Qxf5 {[%clk
01:15:00]} {[%emt 00:02:59]} exf5 {[%clk 01:17:10]} {[%emt 00:00:08]} 19. Rfd1
{[%clk 01:12:08]} {[%emt 00:03:22]} f6 {[%clk 01:10:38]} {[%emt 00:07:01]} 20.
Bf4 {[%clk 01:12:30]} {[%emt 00:00:08]} Rd8 {[%clk 01:06:39]} {[%emt 00:04:29]}
21. a3 {[%clk 01:07:36]} {[%emt 00:05:25]} Kf7 {[%clk 01:01:06]} {[%emt
00:06:02]} 22. Kf1 {[%clk 01:07:13]} {[%emt 00:00:53]} g5 {[%clk 00:57:37]}
{[%emt 00:03:59]} 23. Bg3 {[%clk 01:07:29]} {[%emt 00:00:14]} Ke7 {[%clk
00:55:25]} {[%emt 00:02:42]} 24. Ke2 {[%clk 01:07:11]} {[%emt 00:00:48]} h5
{[%clk 00:47:17]} {[%emt 00:08:38]} 25. h3 {[%clk 00:53:43]} {[%emt 00:13:58]}
h4 {[%clk 00:45:13]} {[%emt 00:02:34]} 26. Bh2 {[%clk 00:54:11]} {[%emt
00:00:01]} Rac8 {[%clk 00:41:53]} {[%emt 00:03:51]} 27. Rxd8 {[%clk 00:47:25]}
{[%emt 00:07:17]} Rxd8 {[%clk 00:42:13]} {[%emt 00:00:09]} 28. Rc4 {[%clk
00:47:44]} {[%emt 00:00:10]} Rc8 {[%clk 00:41:48]} {[%emt 00:00:56]} 29. b4
{[%clk 00:27:18]} {[%emt 00:20:56]} Ke6 {[%clk 00:41:36]} {[%emt 00:00:42]} 30.
b5 {[%clk 00:27:31]} {[%emt 00:00:18]} Kd5 {[%clk 00:41:37]} {[%emt 00:00:28]}
31. Ra4 {[%clk 00:25:38]} {[%emt 00:02:23]} Nc7 {[%clk 00:42:00]} {[%emt
00:00:07]} 32. Bxc7 {[%clk 00:24:24]} {[%emt 00:01:44]} Rxc7 {[%clk 00:42:26]}
{[%emt 00:00:04]} 33. Kd3 {[%clk 00:24:43]} {[%emt 00:00:11]} f4 {[%clk
00:33:02]} {[%emt 00:09:54]} 34. e4+ {[%clk 00:19:05]} {[%emt 00:06:09]} Ke5
{[%clk 00:33:26]} {[%emt 00:00:05]} 35. f3 {[%clk 00:19:24]} {[%emt 00:00:11]}
Rd7+ {[%clk 00:31:34]} {[%emt 00:02:22]} 36. Kc3 {[%clk 00:19:22]} {[%emt
00:00:32]} Rd1 {[%clk 00:29:35]} {[%emt 00:02:29]} 37. Rxa7 {[%clk 00:19:31]}
{[%emt 00:00:22]} Rc1+ {[%clk 00:29:48]} {[%emt 00:00:16]} 38. Kb2 {[%clk
00:15:06]} {[%emt 00:04:55]} Rg1 {[%clk 00:30:06]} {[%emt 00:00:11]} 39. b6
{[%clk 00:15:27]} {[%emt 00:00:11]} Rxg2+ {[%clk 00:28:18]} {[%emt 00:02:17]}
40. Kc3 {[%clk 00:15:47]} {[%emt 00:00:11]} Kd6 {[%clk 00:26:45]} {[%emt
00:02:02]} 41. Rf7 {[%clk 00:12:59]} {[%emt 00:03:18]} 1-0

[Event "FIDE Grand Swiss 2023"]
[Site "Villa Marina, Douglas, Isle of Man, Isle Of Man"]
[Date "2023.11.05"]
[Round "11.41"]
[White "Huschenbeth, Niclas"]
[Black "Idani, Pouya"]
[Result "1-0"]
[TimeControl "40/90 + 30 + 30s/move"]
[WhiteFideId "24604747"]
[BlackFideId "12510130"]
[WhiteElo "2605"]
[BlackElo "2633"]

1. e4 {[%clk 01:40:57]} {[%emt 00:00:02]} e5 {[%clk 01:40:56]} {[%emt
00:00:04]} 2. Nf3 {[%clk 01:41:21]} {[%emt 00:00:05]} Nc6 {[%clk 01:41:23]}
{[%emt 00:00:03]} 3. Bc4 {[%clk 01:41:19]} {[%emt 00:00:33]} Nf6 {[%clk
01:41:48]} {[%emt 00:00:05]} 4. d3 {[%clk 01:41:44]} {[%emt 00:00:04]} Bc5
{[%clk 01:40:01]} {[%emt 00:02:17]} 5. c3 {[%clk 01:41:48]} {[%emt 00:00:26]}
a5 {[%clk 01:38:27]} {[%emt 00:02:05]} 6. O-O {[%clk 01:41:21]} {[%emt
00:00:57]} d6 {[%clk 01:38:27]} {[%emt 00:00:30]} 7. Re1 {[%clk 01:41:17]}
{[%emt 00:00:33]} O-O {[%clk 01:35:37]} {[%emt 00:03:21]} 8. h3 {[%clk
01:38:55]} {[%emt 00:02:53]} h6 {[%clk 01:31:38]} {[%emt 00:04:29]} 9. d4
{[%clk 01:36:29]} {[%emt 00:02:55]} Ba7 {[%clk 01:27:22]} {[%emt 00:04:46]} 10.
Bb3 {[%clk 01:36:51]} {[%emt 00:00:08]} Re8 {[%clk 01:24:42]} {[%emt 00:03:11]}
11. Bc2 {[%clk 01:35:49]} {[%emt 00:01:30]} Bd7 {[%clk 01:16:51]} {[%emt
00:08:22]} 12. a4 {[%clk 01:36:03]} {[%emt 00:00:16]} Rc8 {[%clk 00:57:22]}
{[%emt 00:19:58]} 13. Na3 {[%clk 01:24:59]} {[%emt 00:11:35]} exd4 {[%clk
00:56:41]} {[%emt 00:01:12]} 14. cxd4 {[%clk 01:24:48]} {[%emt 00:00:40]} Nb4
{[%clk 00:55:31]} {[%emt 00:01:39]} 15. Bb1 {[%clk 01:23:42]} {[%emt 00:01:36]}
d5 {[%clk 00:55:49]} {[%emt 00:00:12]} 16. e5 {[%clk 01:23:25]} {[%emt
00:00:46]} Ne4 {[%clk 00:56:16]} {[%emt 00:00:04]} 17. Nb5 {[%clk 01:03:15]}
{[%emt 00:20:41]} Bxb5 {[%clk 00:54:56]} {[%emt 00:01:50]} 18. axb5 {[%clk
01:02:41]} {[%emt 00:01:04]} c5 {[%clk 00:55:24]} {[%emt 00:00:02]} 19. bxc6
{[%clk 00:57:22]} {[%emt 00:05:49]} Nxc6 {[%clk 00:51:35]} {[%emt 00:04:19]} 20.
Bxe4 {[%clk 00:34:27]} {[%emt 00:23:25]} dxe4 {[%clk 00:52:00]} {[%emt
00:00:05]} 21. Rxe4 {[%clk 00:34:53]} {[%emt 00:00:04]} Qd5 {[%clk 00:51:55]}
{[%emt 00:00:35]} 22. Rg4 {[%clk 00:35:19]} {[%emt 00:00:04]} h5 {[%clk
00:48:08]} {[%emt 00:04:16]} 23. Rh4 {[%clk 00:34:36]} {[%emt 00:01:14]} Nxe5
{[%clk 00:47:28]} {[%emt 00:01:11]} 24. Nxe5 {[%clk 00:34:55]} {[%emt
00:00:10]} Rxe5 {[%clk 00:47:53]} {[%emt 00:00:05]} 25. Be3 {[%clk 00:32:03]}
{[%emt 00:03:21]} Rd8 {[%clk 00:40:22]} {[%emt 00:08:02]} 26. b4 {[%clk
00:26:36]} {[%emt 00:05:57]} b6 {[%clk 00:26:28]} {[%emt 00:14:24]} 27. Qe2
{[%clk 00:17:14]} {[%emt 00:09:52]} Bb8 {[%clk 00:26:50]} {[%emt 00:00:09]} 28.
dxe5 {[%clk 00:15:10]} {[%emt 00:02:34]} Qxe5 {[%clk 00:27:16]} {[%emt
00:00:04]} 29. Qa2 {[%clk 00:12:25]} {[%emt 00:03:14]} Qh2+ {[%clk 00:27:26]}
{[%emt 00:00:20]} 30. Kf1 {[%clk 00:12:54]} {[%emt 00:00:01]} Qh1+ {[%clk
00:26:21]} {[%emt 00:01:35]} 31. Ke2 {[%clk 00:13:23]} {[%emt 00:00:01]} Qxg2
{[%clk 00:26:44]} {[%emt 00:00:07]} 32. bxa5 {[%clk 00:11:55]} {[%emt
00:01:57]} Bg3 {[%clk 00:26:40]} {[%emt 00:00:35]} 33. Rd4 {[%clk 00:08:06]}
{[%emt 00:04:20]} Re8 {[%clk 00:27:04]} {[%emt 00:00:05]} 34. Rf1 {[%clk
00:07:30]} {[%emt 00:01:06]} Bc7 {[%clk 00:26:23]} {[%emt 00:01:11]} 35. Qb3
{[%clk 00:05:15]} {[%emt 00:02:45]} Qxh3 {[%clk 00:24:49]} {[%emt 00:02:03]} 36.
axb6 {[%clk 00:04:47]} {[%emt 00:00:58]} Be5 {[%clk 00:25:03]} {[%emt
00:00:16]} 37. Re4 {[%clk 00:04:30]} {[%emt 00:00:48]} 1-0